[Event "*** Titled Tuesday Blitz"]
[Site "Chess.com"]
[Date "2020.01.07"]
[Round "2"]
[White "Fandorin779"]
[Black "Vuk2000"]
[Result "0-1"]
[WhiteElo "2313"]
[BlackElo "2674"]
[TimeControl "180+2"]
[EndTime "13:26:23 PST"]
[Termination "Vuk2000 won by resignation"]

1. e4 {[%clk 0:02:59.1]} 1... e6 {[%clk 0:03:01.3]} 2. d4 {[%clk 0:02:59.7]}
2... d5 {[%clk 0:03:02.7]} 3. Nd2 {[%clk 0:03:01.2]} 3... Be7 {[%clk 0:03:03]}
4. Bd3 {[%clk 0:03:01.5]} 4... c5 {[%clk 0:03:03.3]} 5. c3 {[%clk 0:02:58.1]}
5... cxd4 {[%clk 0:02:57.7]} 6. cxd4 {[%clk 0:02:57.5]} 6... Nc6 {[%clk
0:02:59.2]} 7. Ngf3 {[%clk 0:02:58.2]} 7... dxe4 {[%clk 0:02:54.5]} 8. Nxe4
{[%clk 0:02:57.6]} 8... Nf6 {[%clk 0:02:54.2]} 9. O-O {[%clk 0:02:58.3]} 9...
Nb4 {[%clk 0:02:46]} 10. Qa4+ {[%clk 0:02:10]} 10... Bd7 {[%clk 0:02:43.2]} 11.
Nxf6+ {[%clk 0:02:10.1]} 11... gxf6 {[%clk 0:02:44.5]} 12. Bb5 {[%clk
0:02:09.9]} 12... a6 {[%clk 0:02:27.9]} 13. Bxd7+ {[%clk 0:02:06.5]} 13... Qxd7
{[%clk 0:02:29.8]} 14. Qd1 {[%clk 0:02:01.4]} 14... Qd5 {[%clk 0:02:20.9]} 15.
Bf4 {[%clk 0:01:36.5]} 15... Rg8 {[%clk 0:01:56.2]} 16. Bg3 {[%clk 0:01:22.7]}
16... Rd8 {[%clk 0:01:43.4]} 17. Rc1 {[%clk 0:00:56.9]} 17... Qxa2 {[%clk
0:01:29.3]} 18. Rc7 {[%clk 0:00:50.4]} 18... b5 {[%clk 0:01:25]} 19. Qc1 {[%clk
0:00:33.8]} 19... Qd5 {[%clk 0:01:13.8]} 20. Ra7 {[%clk 0:00:12.8]} 20... Rd7
{[%clk 0:00:59.1]} 21. Qc8+ {[%clk 0:00:12.7]} 21... Bd8 {[%clk 0:00:59.3]} 22.
Ra8 {[%clk 0:00:12.1]} 22... Qc6 {[%clk 0:00:54.5]} 23. Qb8 {[%clk 0:00:05.5]}
23... Nd5 {[%clk 0:00:38.9]} 24. Nd2 {[%clk 0:00:05.6]} 24... f5 {[%clk
0:00:27.8]} 25. Nb3 {[%clk 0:00:03.2]} 25... f4 {[%clk 0:00:23.7]} 26. Rc1
{[%clk 0:00:04.6]} 26... Qd6 {[%clk 0:00:12.6]} 27. Qxd6 {[%clk 0:00:04.8]}
27... Rxd6 {[%clk 0:00:14.5]} 28. Bh4 {[%clk 0:00:06.3]} 28... f6 {[%clk
0:00:10.1]} 29. Rcc8 {[%clk 0:00:07.1]} 29... Nb6 {[%clk 0:00:10.3]} 30. Rxd8+
{[%clk 0:00:06.2]} 30... Rxd8 {[%clk 0:00:11.2]} 31. Rxd8+ {[%clk 0:00:07.9]}
31... Kxd8 {[%clk 0:00:11]} 32. Bxf6+ {[%clk 0:00:09.5]} 32... Ke8 {[%clk
0:00:11.7]} 33. f3 {[%clk 0:00:10.8]} 33... Kf7 {[%clk 0:00:12.7]} 34. Be5
{[%clk 0:00:11.6]} 34... Nc4 {[%clk 0:00:14.1]} 35. Bxf4 {[%clk 0:00:11.1]}
35... Nxb2 {[%clk 0:00:15.2]} 36. Nc5 {[%clk 0:00:12.2]} 36... a5 {[%clk
0:00:16.7]} 37. Bd2 {[%clk 0:00:11.7]} 37... Nc4 {[%clk 0:00:17.7]} 38. Bc3
{[%clk 0:00:11]} 38... a4 {[%clk 0:00:19.1]} 39. g4 {[%clk 0:00:08.2]} 39... a3
{[%clk 0:00:15.3]} 40. h4 {[%clk 0:00:09.3]} 40... Rb8 {[%clk 0:00:14.4]} 41.
Nd3 {[%clk 0:00:08.9]} 41... a2 {[%clk 0:00:14.5]} 42. Nb4 {[%clk 0:00:09.9]}
42... Ra8 {[%clk 0:00:15]} 43. Ba1 {[%clk 0:00:10.6]} 43... Ra4 {[%clk 0:00:16]}
44. Nd3 {[%clk 0:00:09.9]} 44... b4 {[%clk 0:00:15.8]} 0-1

[Event "*** Titled Tuesday Blitz"]
[Site "Chess.com"]
[Date "2020.01.07"]
[Round "2"]
[White "wonderfultime"]
[Black "AndrewMaco"]
[Result "1-0"]
[WhiteElo "2966"]
[BlackElo "2623"]
[TimeControl "180+2"]
[EndTime "13:26:24 PST"]
[Termination "wonderfultime won by resignation"]

1. d4 {[%clk 0:03:01]} 1... Nf6 {[%clk 0:02:56.1]} 2. Nf3 {[%clk 0:03:00.2]}
2... d5 {[%clk 0:02:54.4]} 3. Bf4 {[%clk 0:03:01.3]} 3... e6 {[%clk 0:02:55.4]}
4. e3 {[%clk 0:03:02]} 4... Bd6 {[%clk 0:02:56.9]} 5. Bg3 {[%clk 0:03:02.8]}
5... O-O {[%clk 0:02:57.7]} 6. Nbd2 {[%clk 0:03:03.3]} 6... c5 {[%clk
0:02:58.6]} 7. c3 {[%clk 0:03:04.9]} 7... b6 {[%clk 0:02:59.9]} 8. Bd3 {[%clk
0:03:05.2]} 8... Ba6 {[%clk 0:03:00.2]} 9. Bxa6 {[%clk 0:03:05.4]} 9... Nxa6
{[%clk 0:03:02.1]} 10. O-O {[%clk 0:03:07]} 10... Nb8 {[%clk 0:02:57.5]} 11. Qa4
{[%clk 0:02:55.6]} 11... Bxg3 {[%clk 0:02:52.8]} 12. hxg3 {[%clk 0:02:55.4]}
12... Qd7 {[%clk 0:02:51.6]} 13. Qa3 {[%clk 0:02:56.3]} 13... Qc7 {[%clk
0:02:43.4]} 14. Rac1 {[%clk 0:02:52.6]} 14... Nbd7 {[%clk 0:02:15.8]} 15. c4
{[%clk 0:02:49.9]} 15... dxc4 {[%clk 0:02:16]} 16. Rxc4 {[%clk 0:02:46.5]} 16...
Qb7 {[%clk 0:02:13.5]} 17. Rfc1 {[%clk 0:02:48]} 17... Rfc8 {[%clk 0:02:08.7]}
18. dxc5 {[%clk 0:02:10.5]} 18... Rxc5 {[%clk 0:02:08.4]} 19. Nb3 {[%clk
0:02:09.5]} 19... Rxc4 {[%clk 0:02:06.7]} 20. Rxc4 {[%clk 0:02:11.4]} 20... h6
{[%clk 0:01:57.5]} 21. Nbd4 {[%clk 0:02:07.6]} 21... a6 {[%clk 0:01:49.5]} 22.
Qd6 {[%clk 0:01:51.7]} 22... Rc8 {[%clk 0:01:39.7]} 23. Nc6 {[%clk 0:01:53]}
23... Kh8 {[%clk 0:01:34.4]} 24. b3 {[%clk 0:01:52]} 24... b5 {[%clk 0:01:26.4]}
25. Na5 {[%clk 0:01:37.8]} 25... Qa8 {[%clk 0:01:26.3]} 26. Rc6 {[%clk
0:01:32.7]} 26... Rxc6 {[%clk 0:01:20.5]} 27. Nxc6 {[%clk 0:01:34.6]} 27... Qb7
{[%clk 0:01:02.7]} 28. Nd8 {[%clk 0:01:33.7]} 28... Qc8 {[%clk 0:01:02.7]} 29.
Nxf7+ {[%clk 0:01:30.9]} 29... Kg8 {[%clk 0:01:03.9]} 30. N7e5 {[%clk 0:01:32]}
30... Qc1+ {[%clk 0:01:01]} 31. Kh2 {[%clk 0:01:33]} 31... Nf8 {[%clk
0:00:56.6]} 32. Qe7 {[%clk 0:01:18.7]} 32... Qc8 {[%clk 0:00:45.5]} 33. Nd4
{[%clk 0:01:08.6]} 33... Kh7 {[%clk 0:00:24.9]} 34. f3 {[%clk 0:00:56.5]} 34...
Nd5 {[%clk 0:00:25.3]} 35. Qh4 {[%clk 0:00:48.4]} 35... Nxe3 {[%clk 0:00:25.4]}
36. Qe4+ {[%clk 0:00:49.5]} 36... Nf5 {[%clk 0:00:26.3]} 37. g4 {[%clk
0:00:50.8]} 37... g6 {[%clk 0:00:17.1]} 38. gxf5 {[%clk 0:00:51.7]} 38... gxf5
{[%clk 0:00:18]} 39. Qh4 {[%clk 0:00:45.9]} 39... Qc7 {[%clk 0:00:12.8]} 40. f4
{[%clk 0:00:47.3]} 40... Ng6 {[%clk 0:00:13]} 41. Nxg6 {[%clk 0:00:46.3]} 41...
Kxg6 {[%clk 0:00:14.9]} 42. Nxe6 {[%clk 0:00:47.8]} 42... Qd6 {[%clk 0:00:16.5]}
43. Qg3+ {[%clk 0:00:41.8]} 43... Kf6 {[%clk 0:00:16.4]} 44. Ng7 {[%clk
0:00:43.2]} 44... Qd1 {[%clk 0:00:15.6]} 45. Ne8+ {[%clk 0:00:38.2]} 45... Ke7
{[%clk 0:00:16.1]} 46. Qe3+ {[%clk 0:00:39.2]} 46... Kf8 {[%clk 0:00:15.1]} 47.
Nf6 {[%clk 0:00:39]} 47... Kf7 {[%clk 0:00:15.9]} 48. Qe5 {[%clk 0:00:37]} 48...
Qd3 {[%clk 0:00:10]} 49. Nd5 {[%clk 0:00:33.3]} 1-0

[Event "*** Titled Tuesday Blitz"]
[Site "Chess.com"]
[Date "2020.01.07"]
[Round "2"]
[White "therealtrader"]
[Black "igorkovalenko"]
[Result "0-1"]
[WhiteElo "2595"]
[BlackElo "2910"]
[TimeControl "180+2"]
[EndTime "13:26:27 PST"]
[Termination "igorkovalenko won by resignation"]

1. d4 {[%clk 0:03:01.9]} 1... Nf6 {[%clk 0:03:00.6]} 2. Nf3 {[%clk 0:03:02.6]}
2... b6 {[%clk 0:03:01.1]} 3. Bf4 {[%clk 0:03:03.7]} 3... Bb7 {[%clk 0:03:02.6]}
4. e3 {[%clk 0:03:04.2]} 4... d6 {[%clk 0:03:04.1]} 5. h3 {[%clk 0:03:04.7]}
5... Nbd7 {[%clk 0:03:05.7]} 6. c4 {[%clk 0:03:04.8]} 6... e6 {[%clk 0:03:07.6]}
7. Nc3 {[%clk 0:03:05.4]} 7... Be7 {[%clk 0:03:09.3]} 8. Be2 {[%clk 0:03:06.8]}
8... O-O {[%clk 0:03:10.7]} 9. O-O {[%clk 0:03:07.5]} 9... Ne4 {[%clk
0:03:10.1]} 10. Nxe4 {[%clk 0:03:07.7]} 10... Bxe4 {[%clk 0:03:12]} 11. Nd2
{[%clk 0:03:09.4]} 11... Bb7 {[%clk 0:03:13.3]} 12. Bf3 {[%clk 0:03:10.5]} 12...
Qb8 {[%clk 0:03:14.4]} 13. Bxb7 {[%clk 0:03:10.5]} 13... Qxb7 {[%clk 0:03:16.3]}
14. Qf3 {[%clk 0:03:11.1]} 14... Rab8 {[%clk 0:03:17.2]} 15. Rfd1 {[%clk
0:03:06.8]} 15... a5 {[%clk 0:03:17.7]} 16. Rac1 {[%clk 0:03:07]} 16... Rfc8
{[%clk 0:03:17.9]} 17. Qxb7 {[%clk 0:02:52]} 17... Rxb7 {[%clk 0:03:18.9]} 18.
Ne4 {[%clk 0:02:53.1]} 18... f5 {[%clk 0:03:19]} 19. Nc3 {[%clk 0:02:52.9]}
19... Bf6 {[%clk 0:03:14.7]} 20. d5 {[%clk 0:02:50.2]} 20... e5 {[%clk
0:03:15.5]} 21. Bg3 {[%clk 0:02:50.6]} 21... e4 {[%clk 0:03:13.1]} 22. b3 {[%clk
0:02:44.8]} 22... Nc5 {[%clk 0:03:11.7]} 23. Nb5 {[%clk 0:02:46.1]} 23... Rd8
{[%clk 0:03:11.5]} 24. Rc2 {[%clk 0:02:45.7]} 24... Kf7 {[%clk 0:03:11.9]} 25.
f3 {[%clk 0:02:43.7]} 25... Rd7 {[%clk 0:03:09.3]} 26. Be1 {[%clk 0:02:44.2]}
26... Rb8 {[%clk 0:03:09.9]} 27. Bc3 {[%clk 0:02:43.4]} 27... exf3 {[%clk
0:03:07.1]} 28. gxf3 {[%clk 0:02:43.3]} 28... Re8 {[%clk 0:03:08.4]} 29. Bxf6
{[%clk 0:02:44]} 29... Kxf6 {[%clk 0:03:09.4]} 30. Kf2 {[%clk 0:02:44.6]} 30...
g5 {[%clk 0:03:08.2]} 31. Rd4 {[%clk 0:02:40.5]} 31... Rde7 {[%clk 0:03:08.4]}
32. Re2 {[%clk 0:02:35.8]} 32... h5 {[%clk 0:03:09.1]} 33. Re1 {[%clk
0:02:31.1]} 33... f4 {[%clk 0:03:08.5]} 34. e4 {[%clk 0:02:31.6]} 34... Rg7
{[%clk 0:03:04.4]} 35. Rg1 {[%clk 0:02:25.6]} 35... Rc8 {[%clk 0:03:04.2]} 36.
Na7 {[%clk 0:02:20.4]} 36... Rb8 {[%clk 0:03:03.8]} 37. Rdd1 {[%clk 0:02:16.2]}
37... Nd7 {[%clk 0:03:03.6]} 38. Nc6 {[%clk 0:02:15.7]} 38... Rbg8 {[%clk
0:03:04]} 39. Nd4 {[%clk 0:02:16.7]} 39... Ne5 {[%clk 0:03:04.6]} 40. Rh1 {[%clk
0:02:10.6]} 40... a4 {[%clk 0:03:00.1]} 41. Ne6 {[%clk 0:02:00.5]} 41... Re7
{[%clk 0:02:58.6]} 42. h4 {[%clk 0:02:00.4]} 42... g4 {[%clk 0:02:55.7]} 43.
Nxf4 {[%clk 0:02:00.9]} 43... gxf3 {[%clk 0:02:38]} 44. Nxh5+ {[%clk 0:02:00.4]}
44... Kf7 {[%clk 0:02:39.5]} 45. Rhg1 {[%clk 0:01:57.1]} 45... Rh8 {[%clk
0:02:38]} 46. Rg5 {[%clk 0:01:58.1]} 46... Kf8 {[%clk 0:02:27.9]} 47. Rdg1
{[%clk 0:01:49.6]} 47... Rf7 {[%clk 0:02:27.8]} 48. Ng3 {[%clk 0:01:23.4]} 48...
Rxh4 {[%clk 0:02:18.6]} 49. Nf5 {[%clk 0:01:24.4]} 49... Rh8 {[%clk 0:02:14.6]}
50. Ke3 {[%clk 0:01:18.3]} 50... a3 {[%clk 0:02:14.1]} 51. R5g3 {[%clk 0:01:13]}
51... Ke8 {[%clk 0:02:13.9]} 52. Rg8+ {[%clk 0:01:12.2]} 52... Rxg8 {[%clk
0:02:14.4]} 53. Rxg8+ {[%clk 0:01:14.1]} 53... Kd7 {[%clk 0:02:15.9]} 54. Ra8
{[%clk 0:01:04.6]} 54... Rh7 {[%clk 0:02:15.5]} 55. Nd4 {[%clk 0:01:05.8]} 55...
Rh3 {[%clk 0:02:08.8]} 56. Ne6 {[%clk 0:01:05.8]} 56... Rh2 {[%clk 0:02:02.6]}
57. Nd4 {[%clk 0:00:50.6]} 57... f2 {[%clk 0:01:51.9]} 58. Ke2 {[%clk
0:00:50.5]} 58... f1=Q+ {[%clk 0:01:52]} 59. Kxf1 {[%clk 0:00:51.3]} 59... Rxa2
{[%clk 0:01:52.2]} 60. Nb5 {[%clk 0:00:44.8]} 60... Ra1+ {[%clk 0:01:53]} 61.
Ke2 {[%clk 0:00:45.3]} 61... a2 {[%clk 0:01:54.5]} 62. Nc3 {[%clk 0:00:46.4]}
62... Rb1 {[%clk 0:01:51.5]} 63. Rxa2 {[%clk 0:00:25.8]} 63... Rxb3 {[%clk
0:01:52.4]} 64. Nb5 {[%clk 0:00:27.5]} 64... Nxc4 {[%clk 0:01:53.3]} 65. Nd4
{[%clk 0:00:28.8]} 65... Re3+ {[%clk 0:01:53.8]} 66. Kf2 {[%clk 0:00:29.7]}
66... Rxe4 {[%clk 0:01:55.2]} 67. Nc6 {[%clk 0:00:30.8]} 67... Ne5 {[%clk
0:01:55.4]} 68. Nb8+ {[%clk 0:00:30.1]} 68... Kc8 {[%clk 0:01:56.3]} 69. Na6
{[%clk 0:00:30.9]} 69... Kb7 {[%clk 0:01:55.4]} 0-1

[Event "*** Titled Tuesday Blitz"]
[Site "Chess.com"]
[Date "2020.01.07"]
[Round "2"]
[White "MFBerna"]
[Black "AntonSmirnov"]
[Result "0-1"]
[WhiteElo "2486"]
[BlackElo "2878"]
[TimeControl "180+2"]
[EndTime "13:26:28 PST"]
[Termination "AntonSmirnov won by checkmate"]

1. e4 {[%clk 0:03:01.9]} 1... c5 {[%clk 0:02:59.2]} 2. Nf3 {[%clk 0:03:02.9]}
2... d6 {[%clk 0:02:59.2]} 3. d4 {[%clk 0:03:03.9]} 3... cxd4 {[%clk 0:03:01.1]}
4. Qxd4 {[%clk 0:03:05.8]} 4... Nc6 {[%clk 0:03:01.9]} 5. Bb5 {[%clk 0:03:06.9]}
5... Bd7 {[%clk 0:03:03]} 6. Bxc6 {[%clk 0:03:07.6]} 6... Bxc6 {[%clk
0:03:04.9]} 7. c4 {[%clk 0:03:08.4]} 7... Nf6 {[%clk 0:03:04]} 8. Nc3 {[%clk
0:03:09]} 8... g6 {[%clk 0:03:05.2]} 9. Bg5 {[%clk 0:03:08.7]} 9... Bg7 {[%clk
0:03:06.1]} 10. O-O {[%clk 0:03:03]} 10... O-O {[%clk 0:03:05.9]} 11. Qd3 {[%clk
0:03:01.9]} 11... h6 {[%clk 0:03:05.3]} 12. Bd2 {[%clk 0:02:49.4]} 12... Rc8
{[%clk 0:03:04.8]} 13. Rac1 {[%clk 0:02:43.9]} 13... Nd7 {[%clk 0:03:05.2]} 14.
Rfe1 {[%clk 0:02:36.4]} 14... a6 {[%clk 0:02:55.5]} 15. b3 {[%clk 0:02:35.4]}
15... Kh7 {[%clk 0:02:48.8]} 16. Nd5 {[%clk 0:02:34.2]} 16... Re8 {[%clk
0:02:46.3]} 17. a4 {[%clk 0:02:29]} 17... Nc5 {[%clk 0:02:46.9]} 18. Qb1 {[%clk
0:02:29.3]} 18... e6 {[%clk 0:02:44.6]} 19. Nc3 {[%clk 0:02:27.7]} 19... Qe7
{[%clk 0:02:38.2]} 20. a5 {[%clk 0:02:27.7]} 20... Nd7 {[%clk 0:02:34.7]} 21.
Nd5 {[%clk 0:02:18.5]} 21... Qd8 {[%clk 0:02:20.1]} 22. Nb4 {[%clk 0:02:02.1]}
22... Ne5 {[%clk 0:02:15.3]} 23. Nxe5 {[%clk 0:01:56.3]} 23... Bxe5 {[%clk
0:02:15.5]} 24. g3 {[%clk 0:01:28.2]} 24... Bg7 {[%clk 0:02:05.9]} 25. Qd3
{[%clk 0:01:20.5]} 25... Re7 {[%clk 0:01:54.2]} 26. Rcd1 {[%clk 0:01:17.5]}
26... Rd7 {[%clk 0:01:53.1]} 27. Qe2 {[%clk 0:00:51.9]} 27... Qc7 {[%clk
0:01:43.7]} 28. Nd3 {[%clk 0:00:47.7]} 28... Rcd8 {[%clk 0:01:41.1]} 29. b4
{[%clk 0:00:43.4]} 29... f5 {[%clk 0:01:39.5]} 30. Nf4 {[%clk 0:00:41.3]} 30...
Re8 {[%clk 0:00:50.6]} 31. exf5 {[%clk 0:00:40]} 31... gxf5 {[%clk 0:00:52.1]}
32. Qh5 {[%clk 0:00:28.8]} 32... Qc8 {[%clk 0:00:38.6]} 33. Qg6+ {[%clk
0:00:28.9]} 33... Kh8 {[%clk 0:00:37.8]} 34. Nxe6 {[%clk 0:00:25.4]} 34... Be5
{[%clk 0:00:19.1]} 35. Bxh6 {[%clk 0:00:17]} 35... Rg8 {[%clk 0:00:15.8]} 36.
Qh5 {[%clk 0:00:16.7]} 36... Rh7 {[%clk 0:00:15.6]} 37. Ng5 {[%clk 0:00:13.5]}
37... Be8 {[%clk 0:00:16.8]} 38. Qh4 {[%clk 0:00:10.6]} 38... Bf6 {[%clk
0:00:18.1]} 39. f4 {[%clk 0:00:07.2]} 39... Qxc4 {[%clk 0:00:17]} 40. Rxe8
{[%clk 0:00:03]} 40... Rxe8 {[%clk 0:00:16.5]} 41. Qh5 {[%clk 0:00:04]} 41...
Bd4+ {[%clk 0:00:14.2]} 42. Kg2 {[%clk 0:00:04.5]} 42... Qe2+ {[%clk 0:00:15]}
43. Qxe2 {[%clk 0:00:05.1]} 43... Rxe2+ {[%clk 0:00:16.9]} 44. Kh3 {[%clk
0:00:05.8]} 44... Rxh6# {[%clk 0:00:16.4]} 0-1

[Event "*** Titled Tuesday Blitz"]
[Site "Chess.com"]
[Date "2020.01.07"]
[Round "2"]
[White "Yaacovn"]
[Black "ShahMatKanal"]
[Result "1-0"]
[WhiteElo "2803"]
[BlackElo "2549"]
[TimeControl "180+2"]
[EndTime "13:26:34 PST"]
[Termination "Yaacovn won by resignation"]

1. d4 {[%clk 0:03:01.9]} 1... d5 {[%clk 0:02:59.2]} 2. Nf3 {[%clk 0:03:02.1]}
2... Nf6 {[%clk 0:02:52.5]} 3. Bf4 {[%clk 0:02:53.6]} 3... e6 {[%clk 0:02:51.2]}
4. e3 {[%clk 0:02:51.6]} 4... Bd6 {[%clk 0:02:51.5]} 5. Bg3 {[%clk 0:02:49.9]}
5... Ne4 {[%clk 0:02:42.4]} 6. c4 {[%clk 0:02:47.8]} 6... Nxg3 {[%clk
0:02:38.9]} 7. hxg3 {[%clk 0:02:47.1]} 7... c6 {[%clk 0:02:38.3]} 8. Nc3 {[%clk
0:02:46.2]} 8... Nd7 {[%clk 0:02:36.6]} 9. Qc2 {[%clk 0:02:44.7]} 9... Nf6
{[%clk 0:02:32.9]} 10. a3 {[%clk 0:02:42.3]} 10... h6 {[%clk 0:02:27.6]} 11. Be2
{[%clk 0:02:41.6]} 11... Qe7 {[%clk 0:02:26.9]} 12. Rc1 {[%clk 0:02:40.6]} 12...
Bd7 {[%clk 0:02:26.8]} 13. Ne5 {[%clk 0:02:41.1]} 13... Bxe5 {[%clk 0:02:02.8]}
14. dxe5 {[%clk 0:02:43]} 14... Ng8 {[%clk 0:02:04.4]} 15. f4 {[%clk 0:02:36.2]}
15... Qd8 {[%clk 0:01:57.2]} 16. Qd2 {[%clk 0:02:34.2]} 16... Ne7 {[%clk
0:01:54.7]} 17. e4 {[%clk 0:02:34.9]} 17... O-O {[%clk 0:01:34.6]} 18. Rd1
{[%clk 0:02:19]} 18... Qb6 {[%clk 0:01:28.1]} 19. Bf3 {[%clk 0:02:06.8]} 19...
Rfd8 {[%clk 0:01:16.7]} 20. exd5 {[%clk 0:01:56.8]} 20... cxd5 {[%clk
0:01:17.3]} 21. cxd5 {[%clk 0:01:57.5]} 21... exd5 {[%clk 0:01:17.3]} 22. Qf2
{[%clk 0:01:55.5]} 22... d4 {[%clk 0:01:12.3]} 23. Rxd4 {[%clk 0:01:51.7]} 23...
Bc6 {[%clk 0:01:08]} 24. Rxd8+ {[%clk 0:01:51.6]} 24... Qxd8 {[%clk 0:01:09.9]}
25. O-O {[%clk 0:01:51.5]} 25... Bxf3 {[%clk 0:01:07.3]} 26. Qxf3 {[%clk
0:01:51.1]} 26... Qb6+ {[%clk 0:01:07.3]} 27. Qf2 {[%clk 0:01:52]} 27... Qb3
{[%clk 0:01:06.2]} 28. Rd1 {[%clk 0:01:47.2]} 28... Ng6 {[%clk 0:00:49.2]} 29.
Rd4 {[%clk 0:01:41.8]} 29... a5 {[%clk 0:00:40.6]} 30. Qe2 {[%clk 0:01:36.6]}
30... Rc8 {[%clk 0:00:35.2]} 31. Kh2 {[%clk 0:01:29]} 31... h5 {[%clk
0:00:28.1]} 32. Qd2 {[%clk 0:01:19.2]} 32... h4 {[%clk 0:00:26]} 33. gxh4 {[%clk
0:01:19.5]} 33... Qb6 {[%clk 0:00:09.9]} 34. g3 {[%clk 0:01:05.1]} 34... Nf8
{[%clk 0:00:08.1]} 35. Rd6 {[%clk 0:00:57.2]} 35... Qb3 {[%clk 0:00:07.8]} 36.
f5 {[%clk 0:00:52]} 36... b5 {[%clk 0:00:07.9]} 37. Qf2 {[%clk 0:00:21.5]} 37...
b4 {[%clk 0:00:08.4]} 38. axb4 {[%clk 0:00:23.4]} 38... axb4 {[%clk 0:00:09.7]}
39. Ne4 {[%clk 0:00:25.1]} 39... Rc2 {[%clk 0:00:08.5]} 40. Rd2 {[%clk 0:00:26]}
40... Rc1 {[%clk 0:00:09]} 41. Qg2 {[%clk 0:00:21.7]} 41... Qe3 {[%clk
0:00:08.2]} 42. Rc2 {[%clk 0:00:13.6]} 42... Rd1 {[%clk 0:00:07.9]} 43. Re2
{[%clk 0:00:10.3]} 43... Qc1 {[%clk 0:00:08.9]} 44. e6 {[%clk 0:00:09]} 44...
fxe6 {[%clk 0:00:09.5]} 45. fxe6 {[%clk 0:00:10.6]} 45... Nxe6 {[%clk
0:00:10.3]} 46. Nf2 {[%clk 0:00:11.9]} 46... Qc8 {[%clk 0:00:03.9]} 47. Nxd1
{[%clk 0:00:12.3]} 47... Nd4 {[%clk 0:00:05.1]} 48. Qd5+ {[%clk 0:00:12.5]} 1-0

[Event "*** Titled Tuesday Blitz"]
[Site "Chess.com"]
[Date "2020.01.07"]
[Round "2"]
[White "Keranke"]
[Black "lupta_robin"]
[Result "1-0"]
[WhiteElo "2741"]
[BlackElo "2527"]
[TimeControl "180+2"]
[EndTime "13:26:34 PST"]
[Termination "Keranke won by resignation"]

1. d4 {[%clk 0:02:59.3]} 1... Nf6 {[%clk 0:02:58.4]} 2. c4 {[%clk 0:03:00]} 2...
g6 {[%clk 0:02:59.6]} 3. g3 {[%clk 0:03:01]} 3... Bg7 {[%clk 0:03:00]} 4. Bg2
{[%clk 0:03:02.6]} 4... O-O {[%clk 0:03:01.1]} 5. Nc3 {[%clk 0:03:02.5]} 5... d6
{[%clk 0:03:02.3]} 6. Nf3 {[%clk 0:03:04.1]} 6... Nbd7 {[%clk 0:03:03]} 7. O-O
{[%clk 0:03:05.6]} 7... e5 {[%clk 0:03:04.1]} 8. e4 {[%clk 0:03:05.5]} 8... a6
{[%clk 0:03:05.2]} 9. h3 {[%clk 0:03:05.8]} 9... b5 {[%clk 0:03:05.9]} 10. Qc2
{[%clk 0:02:47.9]} 10... b4 {[%clk 0:02:30.5]} 11. Na4 {[%clk 0:02:37.3]} 11...
c5 {[%clk 0:02:09.4]} 12. dxc5 {[%clk 0:02:39.2]} 12... dxc5 {[%clk 0:01:57.7]}
13. Be3 {[%clk 0:02:40.1]} 13... Qc7 {[%clk 0:01:58.6]} 14. Nd2 {[%clk
0:02:41.8]} 14... Re8 {[%clk 0:01:54]} 15. a3 {[%clk 0:02:38.2]} 15... a5 {[%clk
0:01:49.4]} 16. f4 {[%clk 0:02:01.1]} 16... Bb7 {[%clk 0:01:36]} 17. fxe5 {[%clk
0:01:40.3]} 17... Qxe5 {[%clk 0:01:27.6]} 18. Bf4 {[%clk 0:01:41.4]} 18... Qd4+
{[%clk 0:00:46.3]} 19. Kh2 {[%clk 0:01:42]} 19... Ne5 {[%clk 0:00:47.7]} 20. Nb3
{[%clk 0:01:00.6]} 20... Qxc4 {[%clk 0:00:46.1]} 21. Qxc4 {[%clk 0:01:01.7]}
21... Nxc4 {[%clk 0:00:46.9]} 22. Nbxc5 {[%clk 0:01:03.6]} 22... Bc6 {[%clk
0:00:36.2]} 23. Rac1 {[%clk 0:01:02.6]} 23... Ne5 {[%clk 0:00:23.8]} 24. Bxe5
{[%clk 0:00:45.7]} 24... Rxe5 {[%clk 0:00:24.6]} 25. Nd3 {[%clk 0:00:47.4]}
25... Re6 {[%clk 0:00:23.4]} 26. Rxc6 {[%clk 0:00:45.6]} 26... Rxc6 {[%clk
0:00:19.9]} 27. e5 {[%clk 0:00:47.1]} 27... Rc2 {[%clk 0:00:10.7]} 28. exf6
{[%clk 0:00:48.3]} 28... Bf8 {[%clk 0:00:11.3]} 29. axb4 {[%clk 0:00:36.1]}
29... axb4 {[%clk 0:00:11.8]} 30. Nb6 {[%clk 0:00:37.4]} 30... Rd8 {[%clk
0:00:12.3]} 31. Rd1 {[%clk 0:00:30]} 31... b3 {[%clk 0:00:11]} 32. Kh1 {[%clk
0:00:27.2]} 32... Bc5 {[%clk 0:00:09.5]} 33. Na4 {[%clk 0:00:26.8]} 33... Bd4
{[%clk 0:00:09.1]} 34. Nb4 {[%clk 0:00:22]} 34... Bxf6 {[%clk 0:00:08.3]} 35.
Rf1 {[%clk 0:00:19.3]} 35... Rxg2 {[%clk 0:00:06.8]} 36. Kxg2 {[%clk 0:00:18.8]}
36... Rd2+ {[%clk 0:00:06]} 37. Rf2 {[%clk 0:00:19.9]} 37... Rd4 {[%clk
0:00:05.8]} 38. Rxf6 {[%clk 0:00:20.6]} 38... Rxb4 {[%clk 0:00:07.7]} 39. Nc3
{[%clk 0:00:21.1]} 39... Rd4 {[%clk 0:00:08.6]} 40. Rf2 {[%clk 0:00:22.6]} 40...
Kg7 {[%clk 0:00:09.5]} 41. Nb1 {[%clk 0:00:24.1]} 41... h5 {[%clk 0:00:09.5]}
42. Nd2 {[%clk 0:00:25.6]} 42... Rd3 {[%clk 0:00:11]} 43. Ne4 {[%clk 0:00:26]}
43... f5 {[%clk 0:00:10.4]} 44. Nc5 {[%clk 0:00:26.9]} 44... Re3 {[%clk
0:00:11.9]} 45. h4 {[%clk 0:00:27.1]} 45... Kf6 {[%clk 0:00:12.8]} 46. Rd2
{[%clk 0:00:28.6]} 46... g5 {[%clk 0:00:13.5]} 47. Kf2 {[%clk 0:00:25.6]} 47...
f4 {[%clk 0:00:13.3]} 48. gxf4 {[%clk 0:00:23.7]} 48... gxf4 {[%clk 0:00:14.4]}
49. Rd3 {[%clk 0:00:25.3]} 49... Re5 {[%clk 0:00:11.1]} 50. Nd7+ {[%clk
0:00:26.1]} 1-0